bitfinex/quotes_ETHUSD_20250214
["timestamp","ask_amount","ask_price","bid_price","bid_amount"]
[1739555410048,3.61769,2775.7,2775.6,35.0]
[1739555410259,4.75412784,2775.7,2775.6,35.0]
[1739555410608,5.30412784,2775.7,2775.6,35.0]
[1739555412215,3.61032,2775.6,2775.5,0.049124]
[1739555412414,0.0075,2775.2,2775.1,0.049124]
[1739555412662,0.0075,2775.2,2774.9,0.049124]
[1739555412841,3.60399,2774.7,2774.6,0.049124]
[1739555413042,0.0075,2774.5,2774.1,0.049124]
[1739555413348,5.16487,2774.2,2773.8,0.049124]
[1739555413549,1.5602,2774.2,2773.8,0.049124]
[1739555413747,3.60503,2773.9,2773.8,0.049124]
[1739555414068,0.0075,2773.5,2773.2,0.049124]
[1739555414274,9.87504836,2773.5,2773.4,35.0]
[1739555414421,11.28335149,2773.5,2773.4,35.0]
[1739555414831,11.28335149,2773.5,2771.8,3.60764]
[1739555414832,0.015,2772.7,2772.4,0.049124]
[1739555415029,1.5602,2772.7,2772.6,0.049124]
[1739555415228,4.14425836,2772.8,2772.6,0.049124]
[1739555415448,0.565,2772.7,2772.4,0.049124]
[1739555415659,4.85221977,2772.8,2772.4,0.049124]
[1739555415660,0.54172198,2772.6,2772.4,0.049124]
[1739555415866,4.89731387,2772.8,2772.4,0.049124]
[1739555416163,4.14425836,2772.8,2772.6,0.049124]
[1739555416364,1.5602,2773.1,2772.7,35.0]
[1739555416566,7.75071836,2772.8,2772.7,35.0]
[1739555416864,7.75071836,2772.8,2772.4,0.049124]
[1739555416865,0.015,2772.3,2771.8,0.049124]
[1739555417046,0.015,2772.1,2772.0,0.049124]
[1739555417365,0.7252516,2772.9,2772.5,0.049124]
[1739555417523,0.0450941,2772.8,2772.5,0.049124]
[1739555417716,0.0450941,2772.8,2771.5,1.5292]
[1739555417717,3.6515641,2772.8,2772.3,0.049124]
[1739555417952,3.6515641,2772.8,2772.7,35.0]
[1739555418124,3.62147,2772.8,2772.7,35.0]
[1739555418334,4.17147,2772.8,2772.7,35.0]
[1739555418541,3.61396,2772.8,2772.7,35.0]
[1739555418941,4.17146,2772.8,2772.7,35.0]
[1739555419146,4.17146,2772.8,2771.9,0.049124]
[1739555419147,0.55,2772.7,2771.9,0.049124]
[1739555419346,3.60698,2772.4,2772.1,0.049124]
[1739555419545,3.6072,2772.3,2771.9,0.049124]
[1739555419877,4.14425836,2772.5,2771.9,0.049124]
[1739555420077,7.79631169,2772.5,2772.1,0.049124]
[1739555420278,3.60717,2772.3,2771.9,0.049124]
[1739555420626,0.77963117,2772.4,2772.2,35.0]
[1739555420782,0.77963117,2772.4,2772.2,35.049124]
[1739555421087,0.72842164,2772.7,2772.3,0.049124]
[1739555421267,0.72842164,2772.7,2772.1,0.049124]
[1739555421466,3.60739,2772.1,2771.9,0.049124]
[1739555421634,3.60739,2772.1,2771.5,0.049124]
[1739555421635,1.6078,2771.9,2771.5,0.049124]
[1739555421834,0.0075,2771.8,2771.5,0.049124]
[1739555422034,7.75214836,2771.7,2770.1,3.60997]
[1739555422283,4.14425836,2770.9,2769.9,0.0446609]
[1739555422879,5.74455836,2771.3,2770.5,3.60941]
[1739555423063,10.06797284,2771.3,2770.9,35.0]
[1739555423264,6.45956284,2771.3,2770.9,35.0]
[1739555423470,10.06798284,2771.3,2770.9,35.0]
[1739555423641,5.74455836,2771.3,2770.9,35.0]
[1739555423836,1.51169068,2771.6,2770.9,3.60885]
[1739555424090,0.5655949,2771.5,2771.0,3.60876]
[1739555424232,0.5655949,2771.5,2771.4,35.0]
[1739555424453,4.14425836,2772.1,2771.4,35.0]
[1739555424705,4.14425836,2772.1,2771.5,3.60804]
[1739555425205,2.32879377,2772.3,2772.0,35.0]
[1739555425551,0.72849377,2772.3,2771.7,3.60778]
[1739555425860,0.0075,2772.6,2771.7,3.60778]
[1739555425861,1.6003,2772.7,2771.9,3.60763]
[1739555426054,0.24551104,2772.6,2772.2,3.60719]
[1739555426399,0.24551104,2772.6,2771.6,5.60796]
[1739555426400,4.14425836,2772.5,2771.2,2.0]
[1739555426555,0.04509959,2772.4,2771.7,3.6078]
[1739555426894,0.43897694,2772.4,2771.7,3.6078]
[1739555427109,0.43897694,2772.4,2772.3,35.0]
[1739555427328,0.72618545,2772.7,2772.3,35.0]
[1739555427595,0.72618545,2772.7,2772.2,3.60714]
[1739555427796,0.77127575,2772.7,2772.2,3.60714]
[1739555428005,0.77127575,2772.7,2772.6,35.0]
[1739555428297,0.72618545,2772.7,2772.6,35.0]
[1739555428781,1.6003,2773.2,2772.6,35.0]
[1739555428965,1.6003,2773.2,2772.4,3.60687]
[1739555428966,5.20637,2773.2,2772.4,3.60687]
[1739555429171,1.6003,2773.2,2772.0,2.0]
[1739555429371,3.60607,2773.1,2772.9,35.0]
[1739555429570,0.565,2773.0,2772.9,35.0]
[1739555429773,1.30420984,2773.0,2772.9,35.0]
[1739555429957,4.88327284,2773.0,2772.9,35.0]
[1739555430160,4.88327284,2773.0,2771.9,3.60753]
[1739555430161,0.565,2772.9,2771.9,3.60753]
[1739555430470,3.60648,2772.8,2771.9,3.60751]
[1739555430670,3.60669,2772.7,2771.9,7.21506]
[1739555430866,4.14425836,2772.5,2771.5,1.5393]
[1739555431074,3.65215955,2772.4,2771.6,3.60793]
[1739555431269,1.552,2772.3,2772.0,35.0]
[1739555431713,4.14425836,2772.5,2772.0,35.0]
[1739555431918,0.7218826,2772.2,2772.0,35.0]
[1739555432215,0.7218826,2772.2,2771.8,3.60765]
[1739555432371,0.7218826,2772.2,2770.7,2.0]
[1739555432561,0.7218826,2772.2,2771.7,3.60784]
[1739555432562,1.552,2772.1,2771.7,3.60784]
[1739555432759,0.07257907,2772.1,2771.7,3.60784]
[1739555432968,0.07257907,2772.1,2772.0,35.0]
[1739555433160,0.07257907,2772.1,2772.0,38.6075]
[1739555433408,7.75117836,2772.5,2772.0,35.0]
[1739555433609,3.60719,2772.3,2771.5,3.60807]
[1739555433900,3.60719,2772.3,2771.6,3.60792]
[1739555434100,0.015,2772.1,2771.3,3.60838]
[1739555434406,0.07298094,2772.0,2771.5,3.60812]
[1739555434578,0.59649057,2771.9,2771.5,3.60812]
[1739555434773,0.59649057,2771.9,2771.3,3.60832]
[1739555434982,0.07282696,2771.8,2771.3,3.60832]
[1739555435180,3.6079,2771.7,2771.0,1.6312]
[1739555435516,3.60856,2771.2,2771.1,35.0]
[1739555435762,1.13612484,2771.2,2771.1,35.0]
[1739555435946,4.81847366,2771.2,2771.1,35.0]
[1739555436262,1.20993366,2771.2,2771.1,35.0]
[1739555436472,6.11258509,2771.2,2771.1,35.0]
[1739555437022,5.56258509,2771.2,2771.1,35.0]
[1739555437219,6.11258509,2771.2,2769.9,0.0446609]
[1739555437462,7.7334371,2770.7,2769.9,3.6548809]
[1739555437618,5.67145432,2771.1,2770.5,3.60937]
[1739555437973,0.72911143,2771.2,2770.2,3.60984]
[1739555438275,0.73401642,2771.4,2770.8,3.60897]
[1739555438423,1.5513,2771.7,2771.0,3.60871]
[1739555438619,5.15928,2771.7,2770.9,3.60882]
[1739555438817,3.60812,2771.6,2770.9,3.60882]
[1739555439060,3.60829,2771.4,2770.6,1.6336]
[1739555439261,0.04511638,2771.3,2770.2,1.6336]
[1739555439497,0.07307916,2771.3,2770.6,3.60921]
[1739555439774,0.07307916,2771.3,2770.9,3.60882]
[1739555439938,0.11819225,2771.3,2770.7,3.60907]
[1739555440276,0.0075,2771.0,2770.2,1.63077155]
[1739555440450,0.5575,2771.0,2769.9,0.0446609]
[1739555440643,3.60934,2770.6,2769.9,3.6548009]
[1739555440867,3.60987,2770.2,2769.9,0.0446609]
[1739555441045,0.04513072,2770.1,2769.9,0.0446609]
[1739555441247,0.59292844,2770.1,2769.9,0.0446609]
[1739555441443,0.07229837,2770.1,2769.9,0.0446609]
[1739555441857,3.60967,2770.4,2769.9,0.0446609]
[1739555442057,0.07234882,2770.0,2769.9,3.6548909]
[1739555442272,5.6755271,2770.7,2770.1,3.6099]
[1739555442571,3.60966,2770.4,2769.9,0.0446609]
[1739555442878,3.6098,2770.3,2769.9,0.0446609]
[1739555443037,3.68207582,2770.3,2769.9,0.0446609]
[1739555443232,3.68201582,2770.3,2769.9,0.0446609]
[1739555443540,3.68209582,2770.3,2769.9,0.0446609]
[1739555443771,0.80596281,2770.3,2769.9,0.0446609]
[1739555444175,4.41567281,2770.3,2769.9,0.0446609]
[1739555444474,3.61004,2770.1,2769.9,0.0446609]
[1739555445137,1.5513,2770.0,2769.9,0.0446609]
[1739555445564,8.53997991,2770.3,2769.6,3.61053]
[1739555445565,4.93018991,2770.3,2769.6,3.61053]
[1739555445834,0.07227582,2770.3,2770.0,3.6101]
[1739555446086,1.5513,2770.8,2770.2,3.60977]
[1739555446087,5.16047,2770.8,2770.2,3.60977]
[1739555446240,0.0075,2770.4,2769.6,3.61051]
[1739555446439,3.66230416,2770.4,2769.7,3.6104]
[1739555446773,3.62491,2770.2,2769.5,3.61067]
[1739555446993,1.5513,2770.0,2769.2,3.61107]
[1739555447300,1.5513,2770.0,2769.1,3.61128]
[1739555447588,4.13e-06,2770.3,2770.2,3.60984]
[1739555447788,4.1242271,2771.6,2771.1,3.60866]
[1739555447987,0.72779246,2771.5,2771.1,3.60866]
[1739555448186,0.05762475,2771.5,2771.1,3.60866]
[1739555448373,0.05762475,2771.5,2771.1,3.60859]
[1739555448582,0.05762475,2771.5,2771.1,7.21718]
[1739555448901,0.05762475,2771.5,2770.6,3.60927]
[1739555449063,0.05762475,2771.5,2771.4,3.60828]
[1739555449267,0.0075,2772.1,2771.6,3.60797]
[1739555449467,0.0075,2772.1,2771.0,3.60874]
[1739555449468,0.05797826,2771.5,2771.0,3.60873]
[1739555449793,0.05790671,2771.4,2771.2,3.60846]
[1739555449950,1.5513,2771.4,2770.3,1.6336]
[1739555450152,0.05783515,2771.3,2771.0,3.60872]
[1739555450495,0.05783515,2771.3,2770.9,3.60885]
[1739555450854,0.05783515,2771.3,2771.0,3.60876]
[1739555451192,0.05783515,2771.3,2771.0,3.60879]
[1739555451348,0.05783515,2771.3,2770.9,3.60885]
[1739555451552,1.5637,2773.7,2771.9,2.0]
[1739555451745,1.5637,2773.7,2772.5,3.60685]
[1739555451978,3.60611,2773.1,2772.6,1.07617697]
[1739555452161,3.60606,2773.2,2771.7,1.6229]
[1739555452364,4.1766462,2773.0,2771.7,1.6229]
[1739555452563,0.015,2772.1,2771.2,1.6229]
[1739555452793,0.015,2771.9,2771.1,3.60857]
[1739555452954,0.565,2771.7,2770.8,1.6229]
[1739555453151,0.015,2771.1,2770.2,1.6229]
[1739555453350,1.5637,2771.2,2770.2,1.6229]
[1739555453593,1.5637,2771.2,2770.3,3.60971]
[1739555453594,2.13249271,2771.2,2770.3,3.60971]
[1739555453780,2.17981446,2771.2,2770.2,1.6229]
[1739555453981,2.17981446,2771.2,2770.2,5.23265]
[1739555454158,2.17981446,2771.2,2770.2,1.6229]
[1739555454361,0.04732175,2771.2,2770.4,3.60958]
[1739555454586,3.60846,2771.3,2770.5,3.60942]
[1739555454753,4.1242271,2771.4,2770.3,3.60968]
[1739555454754,0.06232175,2771.2,2770.3,3.60968]
[1739555454953,3.60899,2770.9,2770.2,3.60972]
[1739555455192,4.74479371,2770.8,2770.0,3.61008]
[1739555455494,1.13571371,2770.8,2770.3,3.60965]
[1739555455694,7.7325471,2771.4,2770.7,3.60909]
[1739555455896,3.6083,2771.4,2770.1,3.60985]
[1739555456056,0.565,2771.3,2770.6,3.60923]
[1739555456256,0.565,2771.1,2770.6,3.60923]
[1739555456456,0.360837,2771.3,2770.0,2.0]
[1739555456652,1.5637,2771.6,2771.1,3.60867]
[1739555456858,4.17317,2771.5,2770.7,3.60908]
[1739555457312,4.17317,2771.5,2770.8,3.60906]
[1739555457457,4.87905914,2771.5,2770.8,3.60906]
[1739555457653,0.64427591,2771.4,2771.0,3.60869]
[1739555457857,1.27088914,2771.5,2771.0,3.60869]
[1739555458057,1.27088914,2771.5,2770.8,3.60903]
[1739555458306,1.27088914,2771.5,2770.9,3.60893]
[1739555458510,1.27088914,2771.5,2770.8,3.60903]
[1739555458713,3.60843,2771.3,2770.6,3.6093]
[1739555458923,3.60868,2771.1,2770.2,3.60983]
[1739555459074,3.60868,2771.1,2770.3,3.60968]
[1739555459271,3.60885,2771.0,2770.3,3.60968]
[1739555459514,3.60885,2771.0,2770.4,3.60957]
[1739555459707,4.330783,2770.9,2770.2,3.60983]
[1739555459919,1.5637,2770.8,2770.2,3.60976]
[1739555460133,1.5637,2770.8,2770.5,3.60944]
[1739555460411,3.60948,2770.5,2769.9,3.61015]
[1739555460836,0.565,2770.4,2769.4,1.6229]
[1739555461033,3.60986,2770.2,2769.6,3.61055]
[1739555461199,3.61012,2770.0,2769.5,3.61064]
[1739555461395,4.17464,2770.4,2769.0,4.17577753]
[1739555461600,0.778422,2770.3,2770.0,3.61]
[1739555461811,0.35673829,2770.7,2770.1,3.60991]
[1739555462143,0.35673829,2770.7,2770.4,3.60949]
[1739555462321,1.555,2771.2,2770.6,3.60932]
[1739555462520,1.555,2771.2,2769.9,4.16719219]
[1739555462721,1.555,2771.2,2769.9,2.55559219]
[1739555462924,1.555,2771.1,2769.5,1.6116]
[1739555463094,1.555,2771.5,2770.4,2.0]
[1739555463299,1.96892271,2772.0,2771.4,7.21648]
[1739555463508,1.555,2772.0,2770.8,3.60906]
[1739555463708,1.62253077,2772.0,2771.2,3.60854]
[1739555463941,1.62253077,2772.0,2771.9,3.60763]
[1739555463942,0.06753077,2772.0,2771.9,3.60763]
[1739555464097,0.72046587,2772.6,2771.6,2.0]
[1739555464298,1.555,2772.8,2771.9,2.0]
[1739555464500,3.60617,2773.1,2772.1,3.60736]
[1739555464811,0.03715679,2772.7,2772.2,3.60713]
[1739555465009,3.60644,2772.9,2772.3,3.60701]
[1739555465210,0.0370798,2772.6,2772.3,3.60701]
[1739555465523,1.555,2773.2,2772.5,3.60685]
[1739555465856,0.53421111,2773.2,2772.7,3.60649]
[1739555466217,3.60494,2774.0,2773.3,3.60568]
[1739555466417,1.555,2774.1,2773.6,3.60539]
[1739555466652,3.81162,2774.3,2773.4,3.60568]
[1739555466983,4.53604274,2774.3,2773.6,3.60537]
[1739555467254,4.05829427,2774.2,2773.4,3.60568]
[1739555467420,3.60477,2774.1,2773.3,1.6281]
[1739555467619,3.605,2774.0,2773.3,1.6281]
[1739555467819,0.45360427,2774.2,2773.3,1.6281]
[1739555468018,4.05828427,2774.2,2773.4,3.60566]
[1739555468222,0.89680545,2774.1,2773.5,3.60549]
[1739555468754,0.03738275,2774.1,2773.7,2.0]
[1739555468957,0.207,2774.3,2774.2,2.0]
[1739555469261,0.207,2774.3,2774.2,6.013681]
[1739555469459,0.207,2774.3,2774.2,14.013681]
[1739555469649,1e-05,2774.3,2774.2,13.97764]
[1739555469843,3.60235,2776.0,2774.9,2.0]
[1739555470055,3.60237,2776.0,2775.3,1.6281]
[1739555470249,1.6351,2776.7,2775.7,2.0]
[1739555470452,3.60115,2776.9,2775.9,3.60242]
[1739555470754,0.18248293,2776.7,2775.9,3.60243]
[1739555470959,0.18248293,2776.7,2775.7,2.0]
[1739555471252,0.18248293,2776.7,2776.0,2.0]
[1739555471448,3.9e-07,2777.1,2776.4,3.60178]
[1739555471657,3.9e-07,2777.1,2776.5,3.60165]
[1739555471818,0.03575719,2777.0,2776.5,0.374]
[1739555472019,0.03575719,2777.0,2776.7,5.60138]
[1739555472237,3.9e-07,2777.1,2776.9,3.60113]
[1739555472525,3.9e-07,2777.1,2777.0,5.601]
[1739555473064,3.9e-07,2777.1,2777.0,5.63700402]
[1739555473388,3.9e-07,2777.1,2777.0,10.26510163]
[1739555473669,3.9e-07,2777.1,2777.0,10.2291]
[1739555474166,3.9e-07,2777.1,2777.0,1.6281]
[1739555474366,3.9e-07,2777.1,2776.4,2.0]
[1739555474566,3.9e-07,2777.1,2776.0,3.60227]
[1739555474567,3.6012,2776.9,2776.0,3.60227]
[1739555474770,3.9614,2776.8,2776.1,2.0]
[1739555475067,3.60101,2777.0,2776.2,3.60204]
[1739555475268,3.60136,2776.8,2776.1,2.0]
[1739555475567,3.60916,2776.5,2775.6,3.60271]
[1739555475739,0.03738187,2776.4,2775.7,3.60266]
[1739555476244,0.03738187,2776.4,2776.0,3.60222]
[1739555476566,3.60142,2776.7,2775.9,3.6024]
[1739555476866,0.0075,2776.5,2775.7,3.60259]
[1739555477080,3.60179,2776.4,2775.7,3.60259]
[1739555477286,4.321848,2776.6,2775.6,2.0]
[1739555477443,3.60141,2776.7,2776.0,3.60227]
[1739555477645,3.60155,2776.6,2776.0,3.60227]
[1739555477854,3.60209,2776.2,2775.5,3.60289]
[1739555478053,3.60209,2776.2,2775.6,3.60282]
[1739555478286,4.1242271,2776.9,2775.4,2.0]
[1739555478586,3.60154,2776.6,2775.5,2.0]
[1739555478784,3.6015,2776.7,2775.5,2.0]
[1739555478943,3.602,2776.3,2775.6,3.60278]
[1739555479146,3.60872,2776.9,2775.5,2.0]
[1739555479147,3.6022,2776.1,2775.5,2.0]
[1739555479349,0.0370747,2776.0,2775.6,3.60271]
[1739555479587,3.60226,2776.1,2775.5,2.0]
[1739555479900,3.60192,2776.3,2775.6,3.60275]
[1739555480207,3.60169,2776.5,2775.7,3.60266]
[1739555480208,3.6018,2776.4,2775.7,3.60266]
[1739555480371,3.6091,2776.6,2775.9,3.60242]
[1739555480577,0.721055,2776.6,2776.0,3.60219]
[1739555480780,3.6014,2776.7,2776.1,5.60213]
[1739555481075,3.60113,2776.9,2776.2,3.60202]
[1739555481276,7.20238,2776.9,2776.1,5.60207]
[1739555481503,5.23602039,2777.1,2776.1,2.0]
[1739555481802,3.60123,2776.9,2776.4,2.0]
[1739555482002,3.60103,2777.0,2776.4,2.0]
[1739555482299,3.9e-07,2777.1,2776.4,2.0]
[1739555482465,3.9e-07,2777.1,2776.7,3.60139]
[1739555482662,0.03744356,2777.0,2776.7,2.0]
[1739555482861,0.04867663,2777.0,2776.5,2.0]
[1739555483102,3.9e-07,2777.1,2776.2,2.0]
[1739555483265,3.60096039,2777.1,2776.4,3.6017]
[1739555483461,0.36009604,2777.0,2776.3,7.20364]
[1739555483658,0.36009604,2777.0,2776.3,3.60181]
[1739555483860,3.9e-07,2777.1,2776.5,3.60162]
[1739555484178,0.06739551,2777.1,2776.6,3.60143]
[1739555484502,3.6011,2777.0,2776.2,5.60195]
[1739555484816,0.015,2777.3,2776.4,3.6017]
[1739555484817,3.61569,2777.3,2776.4,3.6017]
[1739555485109,3.60069,2777.3,2776.6,3.60144]
[1739555485407,5.1801,2777.4,2776.7,3.60131]
[1739555485563,5.72155473,2777.4,2776.8,3.60123]
[1739555485770,2.12105473,2777.4,2776.5,2.0]
[1739555485992,3.60079,2777.2,2776.5,5.60156]
[1739555486180,5.18006,2777.4,2776.7,3.60127]
[1739555486506,3.60082,2777.2,2776.5,3.60162]
[1739555486663,3.60112,2777.0,2776.3,3.60184]
[1739555486867,3.60112,2777.0,2776.2,2.0]
[1739555486868,0.360112,2777.0,2776.2,2.0]
[1739555487107,3.60128,2776.8,2776.2,2.0]
[1739555487312,3.60109,2777.0,2776.2,2.0]
[1739555487477,3.60102,2777.0,2776.2,5.602]
[1739555487804,1.5795,2777.4,2776.6,3.60144]
[1739555487805,3.60078,2777.2,2776.6,3.60144]
[1739555488101,3.60078,2777.2,2776.6,7.20289]
[1739555488409,5.18004,2777.4,2776.7,3.60131]
[1739555488608,1.5795,2777.4,2777.0,3.60098]
[1739555488808,0.0688,2777.4,2776.8,3.60116]
[1739555489115,0.0075,2777.3,2776.7,5.23321]
[1739555489282,0.0688,2777.4,2776.7,7.23321]
[1739555489613,0.0388,2777.4,2776.9,3.60111]
[1739555489907,0.0388,2777.4,2776.7,7.23321]
[1739555490111,3.60062,2777.3,2776.5,3.60157]
[1739555490294,3.60139,2776.8,2776.1,5.60209]
[1739555490468,3.60115,2776.9,2776.2,3.60204]
[1739555490670,1.5107,2777.0,2776.1,2.0]
[1739555491208,8.71289,2777.0,2776.3,3.60184]
[1739555491408,8.71289,2777.0,2776.1,5.6021]
[1739555491409,0.871289,2776.9,2776.1,2.0]
[1739555491607,3.60833,2777.2,2776.5,3.60156]
[1739555491762,3.60833,2777.2,2776.5,3.60153]
[1739555491964,3.60833,2777.2,2776.1,2.0]
[1739555492179,0.0075,2777.2,2776.1,2.0]
[1739555492383,0.71312336,2777.1,2776.0,2.0]
[1739555492617,3.60105,2777.0,2776.0,2.0]
[1739555492829,3.60114,2776.9,2776.3,3.60183]
[1739555493188,3.60114,2776.9,2776.2,3.60203]
[1739555493189,3.60113,2776.9,2776.2,3.60203]
[1739555493497,3.60128,2776.8,2776.2,3.60197]
[1739555493832,4.31408336,2777.1,2776.4,3.60167]
[1739555494032,7.91507336,2777.1,2776.4,7.20337]
[1739555494332,4.31408336,2777.1,2776.4,3.60167]
[1739555494512,8.7072657,2777.1,2776.4,3.60167]
[1739555494916,5.1063057,2777.1,2776.5,3.60162]
[1739555495100,5.1063057,2777.1,2776.4,3.60167]
[1739555495518,8.7072957,2777.1,2776.5,3.60158]
[1739555495867,3.60102,2777.0,2776.5,3.60158]
[1739555496035,0.0075,2777.0,2776.4,3.6017]
[1739555496201,0.0075,2777.0,2775.7,0.152]
[1739555496202,3.60162,2776.6,2775.8,2.0]
[1739555496410,3.60191,2776.4,2775.7,0.152]
[1739555496736,3.60162,2776.6,2775.8,3.60255]
[1739555496941,3.6018,2776.4,2775.7,3.75461]
[1739555497119,0.0075,2776.6,2775.7,0.152]
[1739555497291,0.0075,2776.4,2775.7,0.152]
[1739555497486,3.60217,2776.2,2775.7,0.152]
[1739555497693,0.360915,2776.3,2775.7,0.152]
[1739555497902,3.60172,2776.5,2775.9,3.60237]
[1739555498344,5.38374781,2776.7,2776.1,3.6021]
[1739555498528,5.38374781,2776.7,2775.8,2.03602331]
[1739555498529,1.6042,2776.7,2775.8,2.03602331]
[1739555498830,0.71395138,2776.9,2776.1,3.60217]
[1739555499032,3.60876,2776.8,2776.0,3.60221]
[1739555499232,3.60877,2776.8,2776.0,3.60221]
[1739555499397,3.60161,2776.6,2775.9,7.20468]
[1739555499606,0.015,2776.8,2775.7,2.152]
[1739555499806,3.60141,2776.7,2776.1,3.60207]
[1739555500010,3.962431,2776.6,2776.0,3.60224]
[1739555500228,4.54699652,2776.9,2776.2,3.60198]
[1739555500421,3.60129,2776.8,2776.1,3.60204]
[1739555500720,3.60139,2776.7,2776.0,3.60221]
[1739555500932,3.60161,2776.6,2776.0,5.60221]
[1739555501306,3.60161,2776.6,2776.0,2.0]
[1739555501721,3.60185,2776.4,2775.7,0.152]
[1739555501922,1.6042,2776.3,2775.7,0.152]
[1739555502237,3.6023,2776.0,2775.7,0.152]
[1739555502440,0.0075,2775.9,2775.7,0.152]
[1739555502809,0.369221,2775.9,2775.7,0.152]
[1739555503008,3.60212,2776.2,2775.7,0.152]
[1739555503236,0.0075,2776.0,2775.7,0.152]
[1739555503440,3.61006,2775.8,2775.7,0.152]
[1739555503749,5.22176,2775.8,2775.7,0.152]
[1739555503952,5.77176,2775.8,2775.7,0.152]
[1739555504249,6.70918,2775.8,2775.7,0.152]
[1739555504421,6.15918,2775.8,2775.7,0.152]
[1739555504748,6.86391,2775.8,2775.7,0.152]
[1739555505508,7.41391,2775.8,2775.7,0.152]
[1739555505744,0.0075,2775.0,2774.3,3.60441]
[1739555505920,1.9728,2775.0,2774.4,3.60434]
[1739555506129,1.9653,2775.0,2774.5,3.60423]
[1739555506322,1.9653,2775.0,2774.2,3.5809]
[1739555506323,3.61133,2774.9,2774.2,1.5809]
[1739555506636,3.61133,2774.9,2774.0,3.60477]
[1739555506637,0.0075,2774.8,2774.0,3.60477]
[1739555506838,0.0075,2774.8,2774.2,3.60453]
[1739555507011,3.60433,2774.5,2773.8,5.18593]
[1739555507359,1.6192,2774.2,2773.4,5.18652]
[1739555507525,0.015,2774.1,2773.0,3.60612]
[1739555507860,0.71896298,2773.9,2773.4,3.60568]
[1739555508152,3.60478,2774.1,2773.4,3.60559]
[1739555508153,0.73278734,2774.1,2773.4,3.60559]
[1739555508460,0.0075,2773.8,2772.9,1.5809]
[1739555508616,0.015,2774.0,2773.5,3.60554]
[1739555508935,0.015,2774.0,2773.3,3.6057]
[1739555509253,0.015,2774.0,2773.4,3.60558]
[1739555509412,3.61992,2774.0,2773.4,3.60558]
[1739555509748,0.89121271,2773.9,2773.4,3.60558]
[1739555509953,4.33757734,2774.1,2773.4,3.60558]
[1739555510115,0.0075,2774.0,2773.5,3.60551]
[1739555510316,0.0075,2774.0,2773.4,3.60558]
[1739555511049,0.0075,2774.0,2773.0,2.0]
[1739555511050,0.0075,2774.0,2773.6,3.60531]
[1739555511261,1.6042,2774.2,2773.8,3.60515]
[1739555511465,0.0075,2774.1,2773.8,0.003186]
[1739555511761,3.62003,2773.9,2773.8,0.003186]
[1739555511922,0.377753,2773.9,2773.8,0.003186]
[1739555512509,3.982783,2773.9,2773.8,0.003186]
[1739555513113,4.532783,2773.9,2773.8,0.003186]
[1739555513413,6.140783,2773.9,2773.8,0.003186]
[1739555513860,5.590783,2773.9,2773.8,0.003186]
[1739555514024,1.623,2773.9,2773.8,0.003186]
[1739555514614,1.6155,2773.9,2773.8,0.003186]
[1739555514814,2.32644722,2774.3,2773.8,3.608346]
[1739555515025,1.608,2774.3,2774.0,3.60478]
[1739555515357,1.608,2774.3,2773.9,3.60491]
[1739555515530,1.608,2774.3,2773.8,0.003186]
[1739555515728,3.60479,2774.1,2773.8,0.003186]
[1739555515933,0.0075,2774.0,2773.8,0.003186]
[1739555516445,0.0075,2774.1,2773.8,0.003186]
[1739555516828,0.0075,2773.9,2773.8,0.003186]
[1739555517155,3.62003,2773.9,2773.8,0.003186]
[1739555517365,3.982783,2773.9,2773.8,0.003186]
[1739555518058,4.532783,2773.9,2773.8,0.003186]
[1739555518222,3.982783,2773.9,2773.8,0.003186]
[1739555518658,6.87831683,2773.9,2773.8,0.003186]
[1739555520031,0.015,2773.0,2772.5,3.60684]
[1739555520247,0.015,2772.8,2772.3,3.60703]
[1739555520653,1.608,2773.1,2772.7,3.60649]
[1739555520839,3.60633,2772.9,2772.3,3.60699]
[1739555521027,0.17755243,2773.0,2772.5,3.60684]
[1739555521429,0.73169412,2772.9,2772.5,3.60684]
[1739555521625,0.015,2772.8,2772.3,3.60707]
[1739555522263,3.62152,2772.8,2772.3,3.60707]
[1739555522473,0.015,2772.8,2772.3,7.2141]
[1739555522642,1.608,2773.1,2772.7,3.6065]
[1739555522824,2.10359078,2773.1,2772.7,3.6065]
[1739555523030,7.7298371,2773.5,2772.2,2.0]
[1739555523031,1.608,2773.5,2772.2,2.0]
[1739555523331,0.015,2773.3,2772.8,3.60642]
[1739555523869,3.60569,2773.4,2772.3,2.0]
[1739555523870,0.71080083,2773.4,2772.3,2.0]
[1739555524078,0.71080083,2773.4,2773.1,3.606]
[1739555524368,1.07030849,2773.9,2773.4,3.6056]
[1739555524565,0.70755549,2773.9,2773.4,3.6056]
[1739555524866,0.70755549,2773.9,2773.4,3.60566]
[1739555525072,0.70755549,2773.9,2773.5,3.60552]
[1739555525563,1.608,2774.0,2773.6,3.60538]
[1739555525934,0.72140226,2774.2,2773.3,2.0]
[1739555526229,3.60373,2774.9,2773.7,1.6562]
[1739555526434,0.70683431,2774.3,2773.9,3.605]
[1739555526649,0.70683431,2774.3,2773.8,3.60515]
[1739555526875,0.015,2774.2,2773.3,1.6562]
[1739555527081,3.82842343,2774.1,2773.5,3.60555]
[1739555527277,3.82842343,2774.1,2773.2,3.60581]
[1739555527278,0.015,2774.0,2773.2,3.60581]
[1739555527478,3.60525,2773.8,2773.2,3.60581]
[1739555527629,0.015,2774.0,2773.3,3.60573]
[1739555527831,0.015,2774.0,2772.9,1.6562]
[1739555528032,0.38434034,2773.9,2773.2,3.60587]
[1739555528270,0.015,2773.7,2773.0,3.6062]